{"text_format":"1","workbook":"xlsx","n_sheets":1,"sheets":["Sheet1"],"not_rendered":{"charts":0,"images":0,"macros":1,"external_links":0,"defined_names":1,"comments":0,"pivot_tables":0},"unopened":[],"bounds":{"document_bytes":16777216,"sheet_cells":100000,"rows_first":2000,"rows_last":500,"rows_between":2000,"halvings":0,"cell_chars":16384,"cell_head_chars":4096},"cells_cut":0,"cells_raw":0,"read":"whole","date_system":"1900"}

{"sheet":"Sheet1","index":0,"n_rows":41,"n_cols":22,"rows_kept":41,"cut":false,"hidden":false,"merged":[[11,16,12,17],[2,8,8,13],[11,13,12,15],[4,14,5,15],[0,0,8,7],[0,15,1,15],[0,8,0,13],[19,1,19,5],[18,1,18,5],[11,7,12,11],[9,0,10,5],[9,7,10,15],[15,1,15,5],[13,11,13,12],[14,11,14,12],[15,11,15,12],[26,21,26,25],[13,18,18,18],[13,19,18,19],[13,20,18,20],[36,0,36,5],[21,1,21,5],[32,1,32,5],[29,1,29,5],[30,1,30,5],[24,1,24,5],[23,1,23,5],[25,1,25,5],[26,1,26,5],[27,1,27,5],[22,1,22,5],[35,1,35,5],[20,1,20,5],[20,21,20,25],[23,21,23,25],[24,21,24,25],[25,21,25,25],[11,18,12,20],[18,21,18,25],[19,21,19,25],[21,21,21,25],[22,21,22,25],[39,0,39,1],[40,0,40,1],[27,21,27,25],[28,21,28,25],[29,21,29,25],[30,21,30,25],[33,1,33,5],[32,21,32,25],[33,21,33,25],[31,1,31,5],[31,21,31,25],[34,1,34,5],[28,1,28,5]]}
["INSTRUCTIONS:  Use this form when a single information collection document involves multiple reporting and recordkeeping requirements.  The totals of the figures in cols. should be entered in item 13 of OMB-83-I:                  cols. (D) &/or (I) = 13a (respondent is only counted once); cols. F & I = 13b;         cols. H & K = 13c.                                                                                                                                                                                                                                                                                                       (F)Total/(D)Total = (E)Average     (H)Total/(F)Total = (G)Average     (K)Total/(I)Total = (J)Average\nNOTE:  The columns will calculate automatically.  If Col. E's response is something other than annually, i.e., 1/6 years, list as \"1/6\" & decimal will display.    \n",null,null,null,null,null,null,null,"TITLE OF INFORMATION COLLECTION DOCUMENT",null,null,null,null,null,"OMB NO.","0560-0289"]
[]
[null,null,null,null,null,null,null,null,"Organic Certification Cost Share Program (OCCSP)"]
[null,null,null,null,null,null,null,null,null,null,null,null,null,null,"DATE PREPARED"]
[null,null,null,null,null,null,null,null,null,null,null,null,null,null,"2026-03-17"]
[]
[]
[]
[]
["IDENTIFICATION OF REPORTING OR RECORDKEEPING REQUIREMENT",null,null,null,null,null,null,"ANNUAL BURDEN"]
[]
[null,null,null,null,null,null,null,"REPORTS",null,null,null,null,null,"RECORDS",null,null,"RESPONDENT COST",null,"Revised Annual Burden hours  "]
[]
[null,null,null,null,null,null,null,null,null,null,null,"TOTAL BURDEN HOURS",null,null,null,"TOTAL",null,null,"Previously Approved Burden Hours","Difference Due to Adjustments","Differences Due to Program Changes"]
[null,null,null,null,null,null,"FORMS NO (S)","NO. OF","NO OF","TOTAL ANNUAL","HOURS"," (Col. F x G)",null,"NO. OF ","ANNUAL ","RECORD-","COST","TOTAL"]
["SECTION OF","DESCRIPTION",null,null,null,null,"(If \"none\"","RESPONDENTS","RESPONSES","RESPONSES","PER  ","(H)",null,"RECORD-","HOURS PER","KEEPING HOURS","PER","COST"]
["REGS.",null,null,null,null,null,"so state)",null,"PER ","(Col. D x E)","RESPONSE",null,null,"KEEPERS","RECORD-","(Col. I x J)","HOUR","(Col. H x L)"]
[null,null,null,null,null,null,null,null,"RESPONDENT",null,null,"EXEMPT","NON-EXEMPT",null,"KEEPER"]
["(A)","(B)",null,null,null,null,"(C)","(D)","(E)","(F)","(G)",null,null,"(I)","(J)","(K)","(L)","(M)",null,null,null,"Agency Notes"]
["N/A","Grant Agreement Face sheets (State Agencies)",null,null,null,null,"none",0,0,{"$f":"SUM(H20*I20)","v":0},0,null,{"$f":"SUM(J20*K20)","v":0},null,null,null,0,{"$f":"SUM(M20*Q20)","v":0},68,null,{"$f":"M20-S20","v":-68},"Use of face sheets has been discontinued, replaced with ADS-093"]
["N/A","Notice of Grant and Agreement Award (State Agencies)",null,null,null,null,"ADS-093",30,1,{"$f":"H21*I21","v":30},1,null,{"$f":"J21*K21","v":30},null,null,null,40.049999999999997,{"$f":"M21*Q21","v":1201.5},0,null,{"$f":"M21-S21","v":30},"This form replaces Grant Agreement Face sheet"]
["N/A","Request for Advance of Reimbursement (State Agencies) (OMB No. 4040-0012)",null,null,null,null,"SF-270",30,2,{"$f":"H22*I22","v":60},1,{"$f":"J22*K22","v":60},null,null,null,null,40.049999999999997,{"$f":"L22*Q22","v":2403},204,{"$f":"L22-S22","v":-144},null,"Hours moved from non-exempt to exempt, respondents adjusted from 34 to 30, responses per respondent adjusted from 6 to 2"]
["N/A","Application for Federal Assistance (State Agencies) (OMB No. 4040-0004)",null,null,null,null,"SF-424",30,1,30,1,{"$f":"J23*K23","v":30},null,null,null,null,40.049999999999997,{"$f":"L23*Q23","v":1201.5},34,{"$f":"L23-S23","v":-4},null,"Hours moved from non-exempt to exempt, respondents adjusted from 34 to 30"]
["N/A","Federal Financial Report (State Agencies) (OMB No 4040-0014)",null,null,null,null,"SF-425",30,1,30,1,30,null,null,null,null,40.049999999999997,1201.5,51,-21,null,"Hours moved from non-exempt to exempt, respondents adjusted from 34 to 30, hours adjusted from 1.5 hours to 1 hour"]
["N/A","Narrative Report (State Agencies) ",null,null,null,null,"none",30,1,30,1,null,30,null,null,null,40.049999999999997,{"$f":"M25*Q25","v":1201.5},34,{"$f":"M25-S25","v":-4},null,"Respondents adjusted from 34 to 30"]
["N/A","Spreadsheet of Operations Reimbursed (State Agencies)",null,null,null,null,"none",30,1,30,2,null,60,null,null,null,40.049999999999997,{"$f":"M26*Q26","v":2403},68,{"$f":"M26-S26","v":-8},null,"Respondents adjusted from 34 to 30"]
["N/A","Request for Taxpayer ID and Cert. W-9",null,null,null,null,"AD-2047 or W-9",0,0,0,0,null,0,null,null,null,0,0,66,null,{"$f":"M27-S27","v":-66},"Use of W-9 was previously reported on this line and separte line item below.  This line item has been removed and all use of AD-2047 and W-9 is reported separately below."]
["N/A","OCCSP Appliciation (producers and handlers)",null,null,null,null,"CCC-884",12000,1,{"$f":"SUM(H28*I28)","v":12000},1,null,{"$f":"SUM(J28*K28)","v":12000},null,null,null,60.63,727560,15625,-3625,null,"Respondents adjusted from 15,625 to 12,000 to represent participation in recent years"]
["N/A","Documentation - Copy of organic certification (producers and handlers)",null,null,null,null,"Documentation",12000,1,12000,8.3500000000000005E-2,null,1002.0000000000001,null,null,null,60.63,60751.260000000009,15625,-14623,null,"Respondents adjusted from 15,625 to 12,000 to represent participation in recent years, time per response adjusted from 1 hour to 5 minutes (applicant is only providing a copy of certificate)"]
["N/A","Documentation - Itemized invoices of eligible expenses (producers and handlers)",null,null,null,null,"Documentation",12000,1,12000,1,null,12000,null,null,null,60.63,727560,15625,-3625,null,"Respondents adjusted from 15,625 to 12,000 to represent participation in recent years"]
["N/A","Request for Taxpayer Identification Number and Certification (producers and handlers)",null,null,null,null,"W-9",7800,1,7800,0.5,null,3900,null,null,null,60.63,{"$f":"M31*Q31","v":236457},15625,-11725,null,"Time to complete form has been corrected, respondents have been adjusted to reflect number who apply through State Agencies (not used for respondents who apply through FSA county offices)"]
["N/A","Customer Data Worksheet (producers and handlers) (OMB No. 0560-0265)",null,null,null,null,"AD-2047",180,1,{"$f":"H32*I32","v":180},5.0099999999999999E-2,null,{"$f":"SUM(J32*K32)","v":9.0179999999999989},null,null,null,60.63,{"$f":"M32*Q32","v":546.7613399999999},0,9.0179999999999989,null,"Respondents represent producers/handlers who apply through FSA county offices and do not already have this on file (not used for respondents who apply through State Agencies)"]
["N/A","Direct Deposit Sign-up form (farms) OMB No. 1530-0006)",null,null,null,null,"SF-1199A",0,0,0,0,null,0,null,null,null,0,0,15625,null,{"$f":"M33-S33","v":-15625},"This form has been replaced with SF-3881"]
["N/A","ACH Vendor/Miscellaneous Payment Enrollment Form (producers and handlers)  (OMB No. 1530-0069)",null,null,null,null,"SF-3881",{"$f":"0.05*H30","v":600},1,{"$f":"SUM(H34*I34)","v":600},0.25,150,null,null,null,null,60.63,{"$f":"L34*Q34","v":9094.5},0,0,150,"This form replaces SF-1199A. Respondents represent producers/handlers applying through FSA COFs who do not already have this form on file."]
[null,null,null,null,null,null,null,null,null,{"$f":"SUM(J20:J34)","v":44790},null,null,{"$f":"SUM(M20:M34)","v":29031.018},null,null,{"$f":"SUM(P20:P33)","v":0},null,{"$f":"SUM(R20:R34)","v":1771581.52134},{"$f":"SUM(S20:S34)","v":78650},{"$f":"SUM(T20:T34)","v":-33769.982000000004},{"$f":"SUM(U20:U34)","v":-15579}]
[null,"TOTAL OF ALL PAGES",null,null,null,null,null,null,null,{"$f":"SUM(J35)","v":44790},null,null,{"$f":"SUM(M35)","v":29031.018},null,null,{"$f":"SUM(P35)","v":0},null,{"$f":"SUM(R35)","v":1771581.52134}]
["TOTAL - COLUMNS \"F\" AND \"I\" = OMB 83-I, 13b; COLUMNS \"H\" AND \"K\" = OMB 83-I, 13c",null,null,null,null,null,null,null,null,{"$f":"SUM(J36+N36)","v":44790},null,null,{"$f":"SUM(M36+P36)","v":29031.018}]
[]
["Total Respondents",null,{"$f":"H21+H28","v":12030}]
["Responses per Respondent",null,{"$f":"J37/C39","v":3.7231920199501247}]
["Total hours per Response",null,{"$f":"M37/J37","v":0.64815847287340922}]